Cogmind - Beta 16.1 @@@ ROGUE MODE // 2026.02.24 @ 07:02:09 Player: Rocket Result: Destroyed by D-53 Grenadier with Mini Grenade Launcher Performance ------------- Evolutions (0) 0 Regions Visited (2) 400 Robots Destroyed (22) 110 Value Destroyed (266) 266 Prototype IDs (0) 0 Alien Tech Used (0) 0 Bonus (0) 0 TOTAL SCORE: 776 Bonus ------- None Cogmind --------- Core Integrity 0/250 Matter 210/300 Energy 100/100 System Corruption 2% Temperature Cool (0) Movement Core (1350) Ox26 Location -10/Mines Parts ------- > --- POWER (1) -------- (None) > --- PROPULSION (2) --- (None) > --- UTILITY (2) ------ Huge Storage Unit > --- WEAPON (2) ------- Light Assault Rifle > --- INVENTORY (25) --- Ion Engine Ion Engine Light Ion Engine Wheel Wheel Wheel Large Matter Pod (0) Large Matter Pod (0) Large Matter Pod (0) Sensor Array ECM Suite Tractor Beam Light Assault Rifle Grenade Launcher Peak State ------------ > --- POWER ------------ Ion Engine > --- PROPULSION ------- Compact Wheel Compact Wheel > --- UTILITY ---------- Huge Storage Unit Hacking Suite > --- WEAPON ----------- Light Assault Rifle Light Assault Rifle > --- INVENTORY -------- Ion Engine Ion Engine Light Ion Engine Wheel Wheel Wheel Compact Wheel Light Assault Rifle Grenade Launcher Mining Laser [Rating: 10] Favorites ----------- Power Ion Engine Engine Ion Engine Propulsion Compact Wheel Treads Light Treads Wheel Compact Wheel Utility Hacking Suite Device Heat Sink Storage Huge Storage Unit Processor Targeting Computer Hackware Hacking Suite Weapon Light Assault Rifle Ballistic Gun Light Assault Rifle Ballistic Cannon Battle Cannon Launcher Grenade Launcher Special Weapon Mining Laser Build | -11 -10 -10 ------- Run | Yrd Mat Min Slots Evolved . | . . . Power . | . . . Propulsion . | . . . Utility . | . . . Weapon . | . . . Parts Attached 19 | 6 10 3 Power 1 | 1 . . Engine 1 | 1 . . Core . | . . . Reactor . | . . . Propulsion 5 | 2 2 1 Treads 2 | 2 . . Leg . | . . . Wheel 3 | . 2 1 Hover . | . . . Flight . | . . . Utility 6 | 1 4 1 Device 1 | . 1 . Storage 2 | 1 1 . Processor 2 | . 1 1 Hackware 1 | . 1 . Protection . | . . . Artifact . | . . . Weapon 7 | 2 4 1 Energy Gun . | . . . Energy Cannon . | . . . Ballistic Gun 4 | 2 2 . Ballistic Cannon 1 | . . 1 Launcher 1 | . 1 . Special Weapon 1 | . 1 . Impact Weapon . | . . . Slashing Weapon . | . . . Piercing Weapon . | . . . Special Melee Weapon . | . . . Unidentified Prototypes . | . . . Parts Lost 8 | . . 8 Power 1 | . . 1 Propulsion 3 | . . 3 Utility 1 | . . 1 Weapon 3 | . . 3 Highest Loss Streak 8 | . . 8 To Critical Strikes . | . . . Average Backups 9 | 3 8 16 Power 1 | . 1 3 Propulsion 2 | 1 2 3 Utility 1 | . 1 5 Weapon 2 | . 2 4 Tool/Special . | . . . Unused Backups 15 | . 3 12 Power 4 | . 1 3 Propulsion 4 | . 1 3 Utility 6 | . . 6 Weapon 1 | . 1 . Tool/Special . | . . . Average Slot Usage (%) 98 | . 99 95 Engine 13 | . 14 13 Treads 11 | . 14 . Wheel 16 | . 13 26 Storage 11 | . 10 14 Processor 7 | . 6 10 Hackware 8 | . 10 2 Ballistic Gun 24 | . 27 15 Ballistic Cannon 1 | . . 5 Launcher 1 | . . 5 Peak Build Rating 10 | 6 10 10 Average Rating 8 | 3 8 8 On Entrance 5 | . 6 10 Avg Prop Armor Cover (%) 15 | . 15 . Naked Turns . | . . . Heaviest Build 91 | 12 89 91 Greatest Support 40 | 40 40 32 Greatest Overweight (x) 5 | . 2 5 Average Overweight (x) 1 | . 1 2 Largest Inventory Capacity 25 | 8 25 25 Average Capacity 16 | 5 15 25 Most Carried 17 | 5 17 17 Average Carried 9 | 3 8 16 Final Capacity 25 | 8 25 25 Final Carried 17 | 4 17 14 Class Distribution -------------------- 70% | Mutant 29% | Scavenger-Mutant Dominant Class ---------------- Mutant | -10/Materials Scavenger-Mutant | -10/Mines Resources | -11 -10 -10 ----------- Run | Yrd Mat Min Matter Collected 497 | 260 162 75 Remotely . | . . . Salvage Created 464 | . 433 31 Parts 37 | . 33 4 Haulers Intercepted . | . . . Recyclers Shooed 3 | . 3 . Parts Field Recycled . | . . . Retrieved Matter . | . . . Parts Self-Destructed . | . . . Prevented . | . . . Parts Restored . | . . . Kills | -11 -10 -10 ------- Run | Yrd Mat Min Combat Hostiles Destroyed 12 | . 9 3 Guns 8 | . 8 . AOE 4 | . 1 3 Classes Destroyed 8 | . 8 . Worker 3 | . 3 . Builder 2 | . 2 . Tunneler 1 | . 1 . Recycler 2 | . 2 . Operator 1 | . 1 . Watcher 1 | . 1 . Swarmer 9 | . 6 3 Grunt 3 | . 3 . Best Kill Streak 4 | . 4 3 Combat Bots Only 3 | . 3 3 Max Kills in Single Turn 3 | . 1 3 Gunslinging . | . . . Exploded 3 | . 1 3 Melee . | . . . Uniques/NPCs Destroyed . | . . . Combat | -11 -10 -10 -------- Run | Yrd Mat Min Hostile Shots Fired 66 | . 42 24 Missed 22 | . 18 4 Hits 44 | . 24 20 Melee 2 | . . 2 Projectile 42 | . 24 18 AOE 13 | . . 13 Critical Strikes 1 | . . 1 Damage Taken 867 | . 222 645 Core 292 | . 25 267 Absorbed by Shields . | . . . Core Remaining (%) 100 | 100 . . Volleys Fired 76 | . 67 9 Largest 2 | . 2 2 Hottest 100 | . 100 100 Shots Fired 139 | . 128 11 Gun 127 | . 122 5 Cannon 4 | . . 4 Launcher 5 | . 4 1 Special 3 | . 2 1 Kinetic 131 | . 122 9 Thermal 3 | . 2 1 Explosive 5 | . 4 1 Electromagnetic . | . . . Robot Hit Streak 5 | . 5 4 Robot Miss Streak 5 | . 5 2 Penetration Max . | . . . Secondary Targets . | . . . Shots Hit Robots 75 | . 69 6 Core Hits 39 | . 35 4 Critical Kills . | . . . Critical Parts Destroyed . | . . . Critical Strikes . | . . . Melee Attacks . | . . . Impact . | . . . Slashing . | . . . Piercing . | . . . Sneak Attacks . | . . . Combat Hostiles . | . . . Follow-up Attacks . | . . . Damage Inflicted 1033 | . 863 170 Guns 571 | . 551 20 Cannons 46 | . . 46 Explosions 392 | . 288 104 Melee . | . . . Ramming . | . . . Kinetic 617 | . 551 66 Thermal 24 | . 24 . Explosive 392 | . 288 104 Electromagnetic . | . . . Impact . | . . . Slashing . | . . . Piercing . | . . . Highest Corruption 2 | . . 2 Average Corruption 2 | . . 2 Corruption Purged . | . . . Corruption Blocked . | . . . Overload Shots . | . . . Overflow Damage . | . . . Projectiles . | . . . Explosions . | . . . Melee . | . . . Knockbacks 1 | . . 1 Impact . | . . . Kinetic 1 | . . 1 Secondary . | . . . Self-Inflicted Damage . | . . . Shots . | . . . Rammed . | . . . Targets Rammed . | . . . Kicked . | . . . Crushed . | . . . Highest Temperature 20 | . 20 20 Average Temperature 9 | . 9 12 Received Heat Transfer 30 | . 30 . Siege Activations . | . . . Martial Activations . | . . . Shielding Activations . | . . . Robots Disrupted . | . . . Combat Hostiles . | . . . Robots Corrupted . | . . . Combat Hostiles . | . . . Parts Fried . | . . . Impact Corruptions . | . . . Robots Melted . | . . . Combat Hostiles . | . . . Parts Melted . | . . . Heat Transferred 50 | . 50 . Parts Sabotaged . | . . . Parts Stolen . | . . . Parts Stripped . | . . . Power Chain Reactions . | . . . Alert | -11 -10 -10 ------- Run | Yrd Mat Min Maximum Alert Level . | . . . Low Security (%) 100 | 100 100 100 Level 1 . | . . . Level 2 . | . . . Level 3 . | . . . Level 4 . | . . . Level 5 . | . . . High Security . | . . . Max Security . | . . . Peak Influence 123 | . 123 80 Initial 22 | . . 22 Average 51 | . 64 28 Influence Increases 434 | . 353 81 Destroy 0b10 Robot/C 240 | . 180 60 Destroy 0b10 Robot/NC 50 | . 50 . Destroy Leader 52 | . 42 10 Successful Hack 13 | . 13 . Disable Machine 15 | . 15 . Destroy Structure 34 | . 23 11 Lose Combat Pursuer 30 | . 30 . Influence Decreases 434 | . 296 138 Entered New Map 35 | . . 35 Time Decay 368 | . 296 72 Lost Part 31 | . . 31 Squads Dispatched 2 | . 2 . Investigation 1 | . 1 . Extermination . | . . . Reinforcement 1 | . 1 . Assault . | . . . Garrison . | . . . Intercept . | . . . Searches Triggered . | . . . Construction Impeded . | . . . Haulers Reinforced . | . . . Active Scanning Responses . | . . . Cargo Convoy Interrupts . | . . . Stealth | -11 -10 -10 --------- Run | Yrd Mat Min Distress Signals 2 | . 2 . Communications Jammed . | . . . Distress Signals . | . . . Times Spotted 36 | . 16 20 Peak Tracking Total 15 | . 3 15 Tactical Retreats 2 | . 2 . Traps | -11 -10 -10 ------- Run | Yrd Mat Min Traps Triggered 1 | . 1 . Indirectly . | . . . Trap Hack Attempts . | . . . Triggered . | . . . Disarmed . | . . . Reprogrammed . | . . . Reused . | . . . Traps Extracted . | . . . Installed . | . . . Triggered . | . . . Machines | -11 -10 -10 ---------- Run | Yrd Mat Min Machines Disabled 1 | . 1 . Max in Single Turn 1 | . 1 . Machines Repaired . | . . . Machines Dismantled . | . . . Machines Sabotaged . | . . . Overloaded Fab Kills . | . . . Hacking | -11 -10 -10 --------- Run | Yrd Mat Min Machines Accessed 3 | . 3 . Terminals 3 | . 3 . Fabricators . | . . . Repair Stations . | . . . Recycling Units . | . . . Scanalyzers . | . . . Garrison Access . | . . . Total Hacks 5 | . 5 . Successful 2 | . 2 . Failed 3 | . 3 . Catastrophic 2 | . 2 . Database Lockouts . | . . . Manual 6 | . 6 . Terminals 5 | . 5 . Fabricators . | . . . Repair Stations . | . . . Recycling Units . | . . . Scanalyzers . | . . . Garrison Access . | . . . Terminal Hacks 2 | . 2 . Robot Schematic 1 | . 1 . Branch Access Points 1 | . 1 . Fabricator Hacks . | . . . Repair Station Hacks . | . . . Recycling Unit Hacks . | . . . Scanalyzer . | . . . Garrison Access Hacks . | . . . Unauthorized Hacks . | . . . Terminals . | . . . Fabricators . | . . . Repair Stations . | . . . Recycling Units . | . . . Scanalyzers . | . . . Garrison Access . | . . . Data Cores Recovered . | . . . Used . | . . . Hacking Detections 2 | . 2 . Full Trace Events 1 | . 1 . Feedback Events . | . . . Feedback Blocked . | . . . Robot Schematics Acquired 1 | . 1 . Robots Built . | . . . Authchips . | . . . Time . | . . . Total Robot Build Rating . | . . . Part Schematics Acquired . | . . . Parts Built . | . . . Authchips . | . . . Time . | . . . Total Part Build Rating . | . . . Part Studies Acquired . | . . . Parts Repaired . | . . . Time . | . . . Parts Recycled . | . . . Recycled Matter . | . . . Retrieved Matter . | . . . Retrieved Components . | . . . Parts Scanalyzed . | . . . Part Schematics Acquired . | . . . Parts Damaged . | . . . Bothacking | -11 -10 -10 ------------ Run | Yrd Mat Min Used RIF Installer . | . . . Robots Hacked . | . . . Non-combat . | . . . Combat . | . . . Robot Hacks Applied . | . . . Relay Couplers Released . | . . . Fabnet Peak Effective % . | . . . Robots Rewired . | . . . Allies Hacked . | . . . Hacks Repelled . | . . . Allies | -11 -10 -10 -------- Run | Yrd Mat Min Total Allies . | . . . Largest Group . | . . . Highest-Rated Group . | . . . Highest-Rated Ally . | . . . Total Orders . | . . . Ally Attacks . | . . . Total Damage . | . . . Kills . | . . . Allies Corrupted . | . . . Allies Melted . | . . . Intel | -11 -10 -10 ------- Run | Yrd Mat Min Active Infowar (turns) . | . . . Robot Analysis Total . | . . . Derelict Logs Recovered . | . . . Drone Launches . | . . . Drone Recoveries . | . . . Exploration | -11 -10 -10 ------------- Run | Yrd Mat Min Turns Passed 1030 | 95 726 209 Spaces Moved 528 | 53 343 132 Core 2 | 2 . . Treads 188 | 51 137 . Legs . | . . . Wheels 338 | . 206 132 Hover . | . . . Flight . | . . . Fastest Speed 50 | 50 100 130 Average Speed 140 | 155 141 130 Slowest Speed 175 | 160 160 175 Overloaded Moves . | . . . Propulsion Burnouts . | . . . Robots Hopped . | . . . Potential Cave-ins . | . . . Cave-ins Triggered . | . . . Exploration Rate (%) 35 | 4 58 44 Regions Visited 2 Branch Regions 1 Pre-discovered Areas . | . . . Known Exits Taken 1 | . 1 . Unknown Exits Taken 1 | 1 . . Scrap Searched 1 | . . 1 Spaces Dug 1 | . . 1 Terrain Destroyed 38 | . 27 11 Melee . | . . . Projectile 1 | . . 1 AOE 37 | . 27 10 Terrain Rammed . | . . . Walls Destroyed . | . . . Machines Disabled . | . . . Actions | -11 -10 -10 --------- Run | Yrd Mat Min Total 695 | 63 476 156 Wait 36 | . 30 6 Move 526 | 52 342 132 Hop . | . . . Pick Up 24 | 5 18 1 Fast Attach 11 | 5 5 1 Attach 5 | 1 1 3 Detach . | . . . Swap 7 | . 4 3 Drop 10 | . 9 1 Fire 76 | . 67 9 Melee . | . . . Ram . | . . . Kick . | . . . Crush . | . . . Escape Stasis . | . . . Rewire . | . . . Trap . | . . . Miscellaneous . | . . . Route ------- -11/Scrapyard -10/Materials (discovered 3 exits: *Mat / *Min x2) -10/Mines (discovered 1 exit: *Mat) History --------- Turn | Location | Event 10 | -11/Scrapyard | Discovered new exit (range 16) 96 | -11/Scrapyard | Entered Materials 301 | -10/Materials | Build established: Mutant 694 | -10/Materials | Discovered new exit (range 9) 714 | -10/Materials | Identified exit to Mines 822 | -10/Materials | Entered Mines 848 | -10/Mines | Discovered new exit (range 6) 858 | -10/Mines | Identified exit to Materials 932 | -10/Mines | A weapon hastily lodged in a ceiling crevice suddenly fell to the ground 965 | -10/Mines | Assembled infested the area 1026 | -10/Mines | Core integrity fell below 50% 1030 | -10/Mines | Core integrity fell below 20% 1031 | -10/Mines | Destroyed by D-53 Grenadier with Mini Grenade Launcher Last Messages --------------- 01015_ as-83648 destroyed. 01015_ as-90400 destroyed. 01015_ as-92313 destroyed. 01017_ as-74063 destroyed. 01017_ as-67706 destroyed. 01018_ The unstable cave ceiling collapses. 01018_ as-09771 destroyed. 01018_ as-82409 destroyed. 01018_ as-28464 destroyed. 01018_ as-06125 destroyed. 01019_ as-82226 destroyed. 01020_ The unstable cave ceiling collapses. 01021_ as-06144 destroyed. 01023_ Battle Cannon destroyed. 01025_ The unstable cave ceiling collapses. 01025_ Ion Engine destroyed. 01025_ Com. Wheel destroyed. 01028_ The unstable cave ceiling collapses. 01029_ Lgt. Assault Rifle destroyed. 01029_ Signal Interpreter destroyed. Map ----- +----------------------------------------------------+ | ???????????????# ############### #### | | ???????????????# ## | | ???#####???????## ## < "" | | ??## ##???????# ############ ## "" | | ?##[ #####??## #??????????# ## "" | | ?# #### #??????????# ## | | ?# ## ## #??????????# ## """ "" | | ?## ### # #??????????# ## """ "" | | ??# #??????????# ## """ "" | | ??# ##??????????# ## | | ??## ## ##### ##???????????# ## """ "" | | ???##### ##??## ##????????????# ## """ "" | | ??????## ##???####?????????????# ## """ "" | | ??????##* #????????????????????# | | ??????# #????????????????????#### """ "" | | ??????# [ #???????????????????????# """ "" | | ??????# = #???????????????????????# """ "" | | ??????##=##???????????????????????# | | ???????# #????????????????????????###### #? | | ???????# #?????????????????????????????? #? | | ???????# #??????#######?????????????????? #? | | ???????# #?????## ##?????????????????? ? | | ???????# #????## ##?????????????????? | | ???????# ###### #??????????????????? | | ???????#! # ### #??????????????????? | | ??????## @ #??????????????????? | | ??????# # # ?????????????? | | ??????# = ?????????????? | | ??????# % d ### #???????????? | | ??????## ##???? #???????????? | | ??????## # ???#???????????? | | ??????## % # ??????????????? | | ??????# d # ##### ??????????????? | | ??????# ## ##???????????????????? | | ??????# # ??###????????????????????? | | ??????# # ?????????????????????????? | | ??????# # ?????????????????????????? | | ??????# ?????????????????????????? | | ??????# % ??????????????????????????? | | ??????## ??????????????????????????? | | ??????? #??????????????????????????? | | ???????? ?????????????????????????????? | | ????????? #?????????????????????????????? | | ????????? ???????????????????????????????? | | ???????????????????????????????????????????? | | ???????????????????????????????????????????? | | ???????????????????????????????????????????? | | ???????????????????????????????????????????? | | ???????????????????????????????????????????? | | ???????????????????????????????????????????? | +----------------------------------------------------+ Best States ------------- Heat Dissipation 35 Energy Generation 10 Energy Capacity 250 Matter Stores 300 Matter Capacity 300 Sight Range 16 Terrain Scan Density 10 Evasion (%) 40 Targeting Accuracy 5 Recoil Reduction 2 Offensive Hacking 10 Item Schematics ----------------- None Robot Schematics ------------------ M-13 Machinist | -10/Materials | Hacked Fabricated ------------ Nothing Repaired ---------- Nothing Studied --------- None Alien Tech Used ----------------- None Achievements -------------- None Challenges ------------ None Game ------ Seed SensorDispersalStick Manual? 0 Play Time 00:09:48 Cumulative 108.2 hours Start 2026.02.24 @ 06:51:33 End 2026.02.24 @ 07:02:09 Sessions 1 Manual Loads 0 Difficulty Rogue Special Mode None Game No. 164 Rogue 164 Adventurer 0 Explorer 0 Win Type - Total 0 Types 0/0/0/0/0/0/0/0/0/0 Lore% 31 Gallery% 42 Achievement% 35 Wizard Run 0 Options --------- Layout 1 ASCII 0 Keyboard 0 Movement Mouse Keybinds 0 Fullscreen 2 Font 24/Smallcaps Map View 50x35 Zoom Use 52% Tactical HUD 1 Map Filters NONE Filters NONE Steam 1 RUN: 1d58fdef-41c0-4920-9fef-c8eaca545752